Cogmind - Beta 10 @@@ ROGUE MODE // 2020.09.19 @ 23:09:25 Player: Tmvn Result: Destroyed by G-34 Mercenary with Small Laser Performance ------------- Evolutions (1) 500 Regions Visited (3) 600 Robots Destroyed (21) 105 Value Destroyed (652) 652 Prototype IDs (0) 0 Alien Tech Used (0) 0 Bonus (0) 0 TOTAL SCORE: 1857 Bonus ------- None Cogmind --------- Core Integrity 0/400 Matter 300/300 Energy 265/265 System Corruption 0% Temperature Cool (6) Movement Walking (120) Location -9/Materials Parts ------- > --- POWER (1) -------- Improved Ion Engine > --- PROPULSION (3) --- Aluminum Leg > --- UTILITY (3) ------ (None) > --- WEAPON (2) ------- (None) > --- INVENTORY (4) ---- Light Nuclear Core Experimental Sensor Array Peak State ------------ > --- POWER ------------ Light Ion Engine > --- PROPULSION ------- Aluminum Leg Aluminum Leg Compact Wheel > --- UTILITY ---------- Small Storage Unit Sensor Array Improved Terrain Scanner > --- WEAPON ----------- Assault Rifle Light Assault Rifle > --- INVENTORY -------- Ion Engine Light Nuclear Core Experimental Sensor Array Assault Rifle [Rating: 11] Favorites ----------- Power Light Ion Engine Engine Light Ion Engine Propulsion Aluminum Leg Leg Aluminum Leg Wheel Wheel Utility Small Storage Unit Device Improved Terrain Scanner Storage Small Storage Unit Weapon Assault Rifle Energy Gun Small Laser Ballistic Gun Assault Rifle Build | -11 -10 -10 -9 ------- Run | Scr Mat Min Mat Slots Evolved 2 | . . . 2 Power . | . . . . Propulsion 1 | . . . 1 Utility 1 | . . . 1 Weapon . | . . . . Parts Attached 31 | 6 4 4 17 Power 7 | 1 1 1 4 Engine 7 | 1 1 1 4 Core . | . . . . Reactor . | . . . . Propulsion 10 | 2 1 1 6 Treads . | . . . . Leg 6 | . . . 6 Wheel 4 | 2 1 1 . Hover . | . . . . Flight . | . . . . Utility 3 | 1 1 . 1 Device 2 | . 1 . 1 Storage 1 | 1 . . . Processor . | . . . . Hackware . | . . . . Protection . | . . . . Artifact . | . . . . Weapon 11 | 2 1 2 6 Energy Gun 5 | 1 . . 4 Energy Cannon . | . . . . Ballistic Gun 6 | 1 1 2 2 Ballistic Cannon . | . . . . Launcher . | . . . . Special Weapon . | . . . . Impact Weapon . | . . . . Slashing Weapon . | . . . . Piercing Weapon . | . . . . Special Melee Weapon . | . . . . Unidentified Prototypes . | . . . . Parts Lost 22 | . . 3 19 Power 4 | . . 1 3 Propulsion 7 | . . 1 6 Utility 3 | . . . 3 Weapon 8 | . . 1 7 Highest Loss Streak 10 | . . 3 10 Average Slot Usage (%) 81 | . 97 98 67 Engine 11 | . 14 14 9 Leg 8 | . . . 16 Wheel 15 | . 28 28 5 Device 12 | . 11 14 12 Storage 10 | . 14 14 8 Energy Gun 3 | . 14 . 2 Ballistic Gun 17 | . 14 27 12 Naked Turns 3 | . . . 3 Heaviest Build 15 | 10 11 11 15 Greatest Support 26 | 26 26 26 26 Greatest Overweight (x) 2 | . . . 2 Average Overweight (x) . | . . . . Largest Inventory Capacity 6 | 6 6 6 6 Average Capacity 5 | 4 6 6 5 Most Carried 6 | 2 5 6 6 Average Carried 4 | . 3 5 4 Final Capacity 6 | 6 6 6 4 Final Carried 6 | 2 5 6 2 Class Distribution -------------------- 70% | Mutant 29% | Scavenger-Mutant Dominant Class ---------------- Mutant | -10/Materials Mutant | -10/Mines Mutant | -9/Materials Resources | -11 -10 -10 -9 ----------- Run | Scr Mat Min Mat Matter Collected 680 | 253 84 64 279 Remotely . | . . . . Salvage Created 652 | . 112 81 459 Parts 51 | . 12 6 33 Haulers Intercepted . | . . . . Recyclers Shooed . | . . . . Parts Field Recycled . | . . . . Retrieved Matter . | . . . . Parts Self-Destructed . | . . . . Prevented . | . . . . Kills | -11 -10 -10 -9 ------- Run | Scr Mat Min Mat Combat Hostiles Destroyed 19 | . 5 2 12 Guns 15 | . 5 2 8 AOE 4 | . . . 4 Classes Destroyed 5 | . 3 1 1 Tunneler 1 | . 1 . . Watcher 1 | . 1 . . Swarmer 5 | . 5 . . Grunt 10 | . . 2 8 Sentry 4 | . . . 4 Best Kill Streak 6 | . 6 2 5 Combat Bots Only 5 | . 5 2 5 Max Kills in Single Turn 4 | . 1 1 4 Gunslinging . | . . . . Exploded 4 | . . . 4 Melee . | . . . . Uniques/NPCs Destroyed . | . . . . Combat | -11 -10 -10 -9 -------- Run | Scr Mat Min Mat Damage Taken 1827 | . 136 196 1495 Core 433 | . 15 11 407 Absorbed by Shields . | . . . . Core Remaining (%) 94 | 100 . 89 . Volleys Fired 83 | . 15 12 56 Largest 2 | . 2 2 2 Hottest 60 | . 60 60 60 Shots Fired 137 | . 30 21 86 Gun 137 | . 30 21 86 Cannon . | . . . . Launcher . | . . . . Special . | . . . . Kinetic 104 | . 15 18 71 Thermal 33 | . 15 3 15 Explosive . | . . . . Electromagnetic . | . . . . Robot Hit Streak 13 | . 4 12 13 Robot Miss Streak 6 | . 6 2 3 Penetration Max . | . . . . Secondary Targets 2 | . 1 . 1 Max Gunslinging Chain 1 | . 1 . 1 Shots Hit Robots 85 | . 11 13 61 Core Hits 39 | . 8 6 25 Critical Hits . | . . . . Critical Kills . | . . . . Critical Parts Destroyed . | . . . . Melee Attacks . | . . . . Impact . | . . . . Slashing . | . . . . Piercing . | . . . . Sneak Attacks . | . . . . Combat Hostiles . | . . . . Follow-up Attacks . | . . . . Damage Inflicted 1590 | . 165 147 1278 Guns 999 | . 165 147 687 Cannons . | . . . . Explosions 583 | . . . 583 Melee . | . . . . Ramming 8 | . . . 8 Kinetic 783 | . 69 124 590 Thermal 799 | . 96 23 680 Explosive . | . . . . Electromagnetic . | . . . . Impact . | . . . . Slashing . | . . . . Piercing . | . . . . Highest Corruption . | . . . . Average Corruption . | . . . . Corruption Purged . | . . . . Overload Shots . | . . . . Overflow Damage 35 | . . . 35 Projectiles . | . . . . Explosions 35 | . . . 35 Melee . | . . . . Knockbacks . | . . . . Impact . | . . . . Kinetic . | . . . . Secondary . | . . . . Self-Inflicted Damage 184 | . . . 184 Shots 2 | . . . 2 Rammed 2 | . . . 2 Targets Rammed 2 | . . . 2 Kicked . | . . . . Crushed . | . . . . Highest Temperature 50 | . . 50 12 Average Temperature 14 | . . 18 4 Received Heat Transfer 642 | . . 108 534 Siege Activations . | . . . . Robots Corrupted . | . . . . Combat Hostiles . | . . . . Parts Fried . | . . . . Impact Corruptions . | . . . . Robots Melted . | . . . . Combat Hostiles . | . . . . Parts Melted 2 | . . . 2 Heat Transferred 850 | . 225 50 575 Parts Sabotaged . | . . . . Parts Stolen . | . . . . Parts Stripped . | . . . . Power Chain Reactions . | . . . . Missiles Intercepted . | . . . . Alert | -11 -10 -10 -9 ------- Run | Scr Mat Min Mat Peak Influence 242 | . 147 92 242 Initial 57 | . . 57 35 Average 72 | . 65 87 73 Maximum Alert Level 1 | . . . 1 Low Security (%) 98 | 100 100 100 97 Level 1 1 | . . . 2 Level 2 . | . . . . Level 3 . | . . . . Level 4 . | . . . . Level 5 . | . . . . High Security . | . . . . Max Security . | . . . . Squads Dispatched 2 | . . . 2 Investigation 1 | . . . 1 Extermination . | . . . . Reinforcement 1 | . . . 1 Assault . | . . . . Garrison . | . . . . Intercept . | . . . . Construction Impeded . | . . . . Haulers Reinforced . | . . . . Stealth | -11 -10 -10 -9 --------- Run | Scr Mat Min Mat Distress Signals 2 | . 2 . . Communications Jammed . | . . . . Distress Signals . | . . . . Times Spotted 34 | . 9 2 23 Peak Tracking Total 8 | . 5 2 8 Tactical Retreats 3 | . 2 . 1 Traps | -11 -10 -10 -9 ------- Run | Scr Mat Min Mat Traps Triggered 1 | . . . 1 Indirectly . | . . . . Trap Hack Attempts . | . . . . Triggered . | . . . . Disarmed . | . . . . Reprogrammed . | . . . . Reused . | . . . . Traps Extracted . | . . . . Installed . | . . . . Triggered . | . . . . Machines | -11 -10 -10 -9 ---------- Run | Scr Mat Min Mat Machines Disabled 2 | . . . 2 Max in Single Turn 2 | . . . 2 Machines Sabotaged . | . . . . Garrisons Compromised . | . . . . Overloaded Fab Kills . | . . . . Fab Network Shutdowns . | . . . . Hacking | -11 -10 -10 -9 --------- Run | Scr Mat Min Mat Machines Accessed 3 | . 2 . 1 Terminals 2 | . 1 . 1 Fabricators . | . . . . Repair Stations 1 | . 1 . . Recycling Units . | . . . . Scanalyzers . | . . . . Garrison Access . | . . . . Total Hacks 4 | . 3 . 1 Successful 2 | . 1 . 1 Failed 2 | . 2 . . Catastrophic . | . . . . Database Lockouts . | . . . . Manual . | . . . . Terminals 2 | . 1 . 1 Fabricators . | . . . . Repair Stations 2 | . 2 . . Recycling Units . | . . . . Scanalyzers . | . . . . Garrison Access . | . . . . Terminal Hacks 2 | . 1 . 1 Record 2 | . 1 . 1 Fabricator Hacks . | . . . . Repair Station Hacks . | . . . . Recycling Unit Hacks . | . . . . Scanalyzer . | . . . . Garrison Access Hacks . | . . . . Unauthorized Hacks . | . . . . Terminals . | . . . . Fabricators . | . . . . Repair Stations . | . . . . Recycling Units . | . . . . Scanalyzers . | . . . . Garrison Access . | . . . . Data Cores Recovered . | . . . . Used . | . . . . Hacking Detections 2 | . 2 . . Full Trace Events . | . . . . Feedback Events . | . . . . Feedback Blocked . | . . . . Robot Schematics Acquired . | . . . . Robots Built . | . . . . Matter . | . . . . Time . | . . . . Total Robot Build Rating . | . . . . Part Schematics Acquired . | . . . . Parts Built . | . . . . Matter . | . . . . Time . | . . . . Total Part Build Rating . | . . . . Parts Repaired . | . . . . Time . | . . . . Parts Recycled . | . . . . Recycled Matter . | . . . . Retrieved Matter . | . . . . Retrieved Components . | . . . . Parts Scanalyzed . | . . . . Part Schematics Acquired . | . . . . Parts Damaged . | . . . . Bothacking | -11 -10 -10 -9 ------------ Run | Scr Mat Min Mat Used RIF Installer . | . . . . Robots Hacked . | . . . . Non-combat . | . . . . Combat . | . . . . Robot Hacks Applied . | . . . . Relay Couplers Released . | . . . . Robots Rewired . | . . . . Allies Hacked . | . . . . Hacks Repelled . | . . . . Allies | -11 -10 -10 -9 -------- Run | Scr Mat Min Mat Total Allies . | . . . . Largest Group . | . . . . Highest-Rated Group . | . . . . Highest-Rated Ally . | . . . . Total Orders . | . . . . Ally Attacks . | . . . . Total Damage . | . . . . Kills . | . . . . Allies Corrupted . | . . . . Allies Melted . | . . . . Intel | -11 -10 -10 -9 ------- Run | Scr Mat Min Mat Robot Analysis Total . | . . . . Derelict Logs Recovered . | . . . . Drone Launches . | . . . . Drone Recoveries . | . . . . Exploration | -11 -10 -10 -9 ------------- Run | Scr Mat Min Mat Turns Passed 1034 | 61 160 286 527 Spaces Moved 769 | 58 133 272 306 Core 20 | 3 . . 17 Treads . | . . . . Legs 261 | . . . 261 Wheels 488 | 55 133 272 28 Hover . | . . . . Flight . | . . . . Fastest Speed 50 | 50 80 80 50 Average Speed 99 | 86 82 89 118 Slowest Speed 150 | 90 90 90 150 Overloaded Moves . | . . . . Propulsion Burnouts . | . . . . Robots Hopped . | . . . . Cave-ins Triggered . | . . . . Exploration Rate (%) 32 | 3 29 64 32 Regions Visited 3 Branch Regions 1 Pre-discovered Areas . | . . . . Known Exits Taken . | . . . . Unknown Exits Taken 3 | 1 1 1 . Scrap Searched 2 | . . 2 . Spaces Dug . | . . . . Terrain Destroyed 46 | . . . 46 Melee . | . . . . Projectile . | . . . . AOE 46 | . . . 46 Terrain Rammed . | . . . . Walls Destroyed . | . . . . Machines Disabled . | . . . . Actions | -11 -10 -10 -9 --------- Run | Scr Mat Min Mat Total 894 | 65 151 295 383 Wait 1 | . . 1 . Move 766 | 57 132 271 306 Hop . | . . . . Pick Up 8 | 2 . 5 1 Fast Attach 14 | 6 1 . 7 Attach 10 | . . 3 7 Detach . | . . . . Swap 7 | . 3 1 3 Drop 3 | . . 2 1 Fire 83 | . 15 12 56 Melee . | . . . . Ram . | . . . . Kick 2 | . . . 2 Crush . | . . . . Escape Stasis . | . . . . Rewire . | . . . . Trap . | . . . . Miscellaneous . | . . . . Route ------- -11/Scrapyard -10/Materials -10/Mines -9/Materials History --------- Turn | Location | Event 7 | -11/Scrapyard | Discovered new exit (range 16) 62 | -11/Scrapyard | Entered Materials 207 | -10/Materials | Discovered new exit (range 12) 222 | -10/Materials | Entered Mines 267 | -10/Mines | Lost 3 parts (1p1n1w) 370 | -10/Mines | Found a damaged Exp. Sensor Array with a note attached 374 | -10/Mines | Found Prototype Device 438 | -10/Mines | Discovered new exit (range 12) 508 | -10/Mines | Entered Materials 508 | -9/Materials | Evolved 2 slots: Propulsion x1, Utility x1 533 | -9/Materials | Build established: Mutant 780 | -9/Materials | Lost 6 parts (1p2n1u2w) 873 | -9/Materials | Core integrity fell below 50% 896 | -9/Materials | Core integrity fell below 20% 926 | -9/Materials | Lost 10 parts (2p2n2u4w) 1035 | -9/Materials | Destroyed by G-34 Mercenary with Small Laser Last Messages --------------- K-01 Serf collects debris. U-05 Engineer lays Concrete. K-01 Serf collects debris. U-05 Engineer lays Concrete. R-06 Scavenger collects Lgt. Treads. K-01 Serf collects debris. U-05 Engineer lays Concrete. K-01 Serf collects debris. U-05 Engineer lays Concrete. K-01 Serf collects debris. Acquired EM Pulse Gun. Triggered Alarm Trap. An alarm sounds. ALERT: Alarm triggered, dispatching investigation squad. K-01 Serf collects debris. Slammed into T-07 Excavator. ALERT: Hostiles spotted, dispatching reinforcements to Terminal M003. Aluminum Leg destroyed. EM Pulse Gun destroyed. Slammed into S-10 Pest. Map ----- +----------------------------------------------------+ | ??????????????????????????????????????????? | | ??????????????????????????????????????????? | | ??????????????????????????????????????????? | | ??????????????????????????????????????????? | | ??????????????????????????????????????????? | | ??????????????????????????????????????????? | | ??????????????????????????????????????????? | | ??????????????????????????????????????????? | | ??????????????????????????????????????????? | | ??????????????????????????????????????????? | | ??????????????????????????????????????????? | | ???????????????##########?????????????????? | | ???????????????# #?????????????????? | | ???????????????# #?????????????????? | | ???????????????# #?????????????????? | | ???????????????# #?????????????????? | | ???????????????# #?????????????????? | | ???????????????# #?????????????????? | | ???????????????# ! #?????????????????? | | ?????########### #?????????????????? | | ?????# # #?????????????????? | | ?????# #+##+#######???????????????? | | ?????# # #???????????????? | | ?????# + t k #???????????????? | | ?????# # gs #??????????? ???? | | ?????# ###@#### #???????????????? | | ?????# #?# #??# #???????????????? | | ?????# #?# #??# ##############+## | | ?????##+########?# #??# # | | ??????# ##########s#??# # | | ??????# s #??# # | | ??????# ############??# ### ## # | | ??????# #?????????????# # % # | | ??????# #?????????????# # | | ??????# #?????????????# # | | ??????# #??????######## | | #####?# #??????# = % # | | # ?# #??????? # %# | | # "T" # #?????????? """ %!! ## # | | # # #?????????? """ # # # | | # ! + #??????????? """ # #!% # | | # # #?????????????? ##### ## # | | # # #?????????????? ????######### # | | # ?# #??????????????" ??#???#????# | | #####?# #??????????????? ???????????# | | ??????# #?????????????????????????#??# | | ??????# #????????????????????????????# | | ??????# #????????????????????#???????# %%= | | ?????? ???????????????????????? ######+## | | ?????? ?????????????????????????# ! % | +----------------------------------------------------+ Best States ------------- Heat Dissipation 28 Energy Generation 12 Energy Capacity 265 Matter Stores 300 Matter Capacity 300 Sight Range 16 Robot Scan Range 10 Terrain Scan Range 16 Terrain Scan Density 10 Evasion (%) 44 Item Schematics ----------------- None Robot Schematics ------------------ None Fabricated ------------ Nothing Alien Tech Used ----------------- None Achievements -------------- None Challenges ------------ None Game ------ Seed LightningSystemDevice Manual? 0 Play Time 00:12:15 Cumulative 4.6 hours Start 2020.09.19 @ 23:00:45 End 2020.09.19 @ 23:09:25 Sessions 1 Manual Loads 0 Difficulty Rogue Special Mode None Game No. 11 Rogue 11 Adventurer 0 Explorer 0 Win Type - Total 0 Types 0/0/0/0/0/0/0/0/0 Lore% 7 Gallery% 14 Achievement% 20 Wizard Run 0 Options --------- ASCII 1 Keyboard 1 Movement Vi Keybinds 0 Fullscreen 2 Font 24/Proggy Map View 76x50 Tactical HUD 0 Map Filters SATURATION(56) Filters SATURATION(66) Steam 1 RUN: 644eca1d-d00e-4c07-9017-26a6c8470499